[Event "Swiss National League-A 2024"]
[Site "Luzern"]
[Date "2024.10.12"]
[Round "8.39"]
[White "Schmid, Michael"]
[Black "Colmenares, Aurelio"]
[Result "1/2-1/2"]
[ECO "A05"]
[WhiteElo "2149"]
[BlackElo "2331"]
[Annotator "RC"]
[PlyCount "59"]
[EventDate "2023.10.03"]
[EventType "team-tourn"]
[EventCountry "SUI"]
[SourceTitle "playchess.com"]
[Source "ChessBase"]
[SourceQuality "1"]
[TimeControl "40/8400+30:20/3000+30:900+30"]

1. Nf3 {[%emt 0:40:08]} Nf6 {[%emt 0:40:56]} 2. g3 {[%emt 0:00:11]} g6 {[%emt 0:00:28]} 3. Bg2 {[%emt 0:00:11]} Bg7 {[%emt 0:00:07]} 4. d3 {[%emt 0:00:14]} O-O {[%emt 0:00:48]} 5. e4 {[%emt 0:00:30]} d6 {[%emt 0:01:13]} 6. O-O {[%emt 0:00:16]} Nc6 {[%emt 0:01:12]} 7. Nc3 {[%emt 0:04:13]} Bd7 {[%emt 0:00:59]} 8. h3 {[%emt 0:00:24]} Rb8 {[%emt 0:03:10]} 9. a4 {[%emt 0:06:01]} a6 {[%emt 0:01:35]} 10. Be3 {[%emt 0:07:40]} e6 {[%emt 0:07:52]} 11. Qd2 {[%emt 0:02:16]} Re8 {[%emt 0:01:24]} 12. Bh6 {[%emt 0:01:46]} Bh8 {[%emt 0:02:22]} 13. Ng5 {[%emt 0:06:12]} b5 {[%emt 0:02:11]} 14. axb5 {[%emt 0:02:53]} axb5 {[%emt 0:00:07]} 15. f4 {[%emt 0:00:46]} Nd4 {[%emt 0:03:53]} 16. Rae1 {[%emt 0:11:53]} Bc6 {[%emt 0:10:24]} 17. Nd1 {[%emt 0:05:51]} b4 {[%emt 0:09:02]} 18. c3 {[%emt 0:04:05]} bxc3 {[%emt 0:00:48]} 19. bxc3 {[%emt 0:00:10]} Nb3 {[%emt 0:00:35]} 20. Qc2 {[%emt 0:06:06]} Nd7 {[%emt 0:09:47]} 21. d4 {[%emt 0:09:34]} d5 {[%emt 0:27:41]} 22. e5 {[%emt 0:04:52]} Bg7 {[%emt 0:00:31]} 23. Bxg7 {[%emt 0:00:31]} Kxg7 {[%emt 0:00:02]} 24. Ne3 {[%emt 0:04:45]} Bb5 {[%emt 0:01:50]} 25. Rf2 {[%emt 0:01:14]} Na5 {[%emt 0:03:02]} 26. g4 {[%emt 0:04:37]} h6 {[%emt 0:06:36]} 27. Nf3 {[%emt 0:01:14]} Nc4 {[%emt 0:00:07]} 28. f5 {[%emt 0:03:17]} Nxe3 {[%emt 0:00:08]} 29. Rxe3 {[%emt 0:00:06]} Ra8 {[%emt 0:01:19]} 30. Re1 {[%emt 0:02:20]} 1/2-1/2

[Event "Swiss National League-A 2024"]
[Site "Luzern"]
[Date "2024.10.12"]
[Round "8.40"]
[White "Gerber, Richard"]
[Black "Coellen, Eike"]
[Result "1-0"]
[ECO "D05"]
[WhiteElo "2244"]
[BlackElo "2020"]
[Annotator "RC"]
[PlyCount "73"]
[EventDate "2023.10.03"]
[EventType "team-tourn"]
[EventCountry "SUI"]
[SourceTitle "playchess.com"]
[Source "ChessBase"]
[SourceQuality "1"]
[TimeControl "40/8400+30:20/3000+30:900+30"]

1. d4 {[%emt 0:40:02]} Nf6 {[%emt 0:40:09]} 2. Nf3 {[%emt 0:00:10]} e6 {[%emt 0:00:22]} 3. e3 {[%emt 0:00:24]} d5 {[%emt 0:01:12]} 4. Bd3 {[%emt 0:00:52]} c5 {[%emt 0:01:37]} 5. b3 {[%emt 0:00:16]} Qc7 {[%emt 0:01:16]} 6. Nbd2 {[%emt 0:01:21]} Nc6 {[%emt 0:01:32]} 7. c4 {[%emt 0:06:00]} cxd4 {[%emt 0:07:27]} 8. exd4 {[%emt 0:02:37]} Be7 {[%emt 0:03:30]} 9. Bb2 {[%emt 0:01:35]} O-O {[%emt 0:01:33]} 10. O-O {[%emt 0:00:12]} dxc4 {[%emt 0:01:50]} 11. bxc4 {[%emt 0:00:26]} b6 {[%emt 0:00:39]} 12. Rc1 {[%emt 0:03:26]} Rd8 {[%emt 0:10:03]} 13. Qe2 {[%emt 0:03:27]} Bb7 {[%emt 0:05:21]} 14. Rfd1 {[%emt 0:06:09]} Rac8 {[%emt 0:05:23]} 15. Nf1 {[%emt 0:06:32]} Qf4 {[%emt 0:18:37]} 16. Bb1 {[%emt 0:12:53]} Na5 {[%emt 0:12:24]} 17. Ne5 {[%emt 0:05:59]} Bd6 {[%emt 0:02:43]} 18. Ne3 {[%emt 0:08:28]} Bxe5 {[%emt 0:01:21]} 19. dxe5 {[%emt 0:00:13]} Nd7 {[%emt 0:03:07]} 20. Rd4 {[%emt 0:08:20]} Qg5 {[%emt 0:04:17]} 21. Rcd1 {[%emt 0:05:43]} Nf8 {[%emt 0:02:44]} 22. h4 {[%emt 0:01:36]} Qe7 {[%emt 0:00:30]} 23. Rd6 {[%emt 0:01:14]} Qxh4 {[%emt 0:07:09]} 24. R1d4 {[%emt 0:03:53]} Qe7 {[%emt 0:01:02]} 25. Qh5 {[%emt 0:03:35]} Ng6 {[%emt 0:04:33]} 26. Ba3 {[%emt 0:07:54]} Rxd6 {[%emt 0:03:54]} 27. exd6 {[%emt 0:07:15]} Qf6 {[%emt 0:02:27]} 28. Bb2 {[%emt 0:01:09]} Nc6 {[%emt 0:03:20]} 29. Ng4 {[%emt 0:06:28]} Qd8 {[%emt 0:00:15]} 30. Rd3 {[%emt 0:01:10]} f5 {[%emt 0:00:57]} 31. Rh3 {[%emt 0:01:28]} Nf8 {[%emt 0:00:35]} 32. Nh6+ {[%emt 0:01:00]} gxh6 {[%emt 0:00:07]} 33. Rg3+ {[%emt 0:00:25]} Ng6 {[%emt 0:00:53]} 34. Rxg6+ {[%emt 0:00:10]} hxg6 {[%emt 0:00:05]} 35. Qxg6+ {[%emt 0:00:14]} Kf8 {[%emt 0:00:01]} 36. Bg7+ {[%emt 0:00:33]} Kg8 {[%emt 0:00:01]} 37. Bxh6+ {[%emt 0:00:20]} 1-0

[Event "Swiss National League-A 2024"]
[Site "Luzern"]
[Date "2024.10.13"]
[Round "9.1"]
[White "Bauer, Christian"]
[Black "Heimann, Andreas"]
[Result "1/2-1/2"]
[ECO "C48"]
[WhiteElo "2557"]
[BlackElo "2556"]
[Annotator "TA"]
[PlyCount "60"]
[EventDate "2023.10.03"]
[EventType "team-tourn"]
[EventCountry "SUI"]
[SourceTitle "playchess.com"]
[Source "ChessBase"]
[SourceQuality "1"]
[TimeControl "40/8400+30:20/3000+30:900+30"]

{[%evp 15,60,13,14,0,2,0,0,0,0,0,0,0,0,0,0,-8,13,0,30,14,31,9,14,18,12,25,20,-325,23,0,0,0,0,0,0,0,0,0,0,0,0,0,0,0,0,0,0]} 1. e4 {[%emt 0:40:06]} e5 {[%emt 0:40:05]} 2. Nf3 {[%emt 0:00:11]} Nc6 {[%emt 0:00:05]} 3. Nc3 {[%emt 0:00:33]} Nf6 {[%emt 0:00:06]} 4. Bb5 {[%emt 0:00:05]} Nd4 {[%emt 0:00:19]} 5. O-O {[%emt 0:00:27]} Nxb5 {[%emt 0:00:52]} 6. Nxb5 {[%emt 0:00:31]} c6 {[%emt 0:00:54]} 7. Nc3 {[%emt 0:00:06]} d6 {[%emt 0:00:05]} 8. d4 {[%emt 0:02:24]} Qc7 {[%emt 0:00:10]} 9. Bg5 {[%emt 0:02:56]} Be7 {[%emt 0:00:26]} 10. h3 {[%emt 0:04:34]} O-O {[%emt 0:03:44]} 11. a4 {[%emt 0:02:43]} h6 {[%emt 0:16:11]} 12. Bxf6 {[%emt 0:08:37]} Bxf6 {[%emt 0:00:10]} 13. d5 {[%emt 0:00:04]} Be7 {[%emt 0:16:32]} 14. Qd3 {[%emt 0:05:16]} f5 {[%emt 0:05:08]} 15. Nd2 {[%emt 0:13:52]} Kh8 {[%emt 0:02:13]} 16. a5 {[%emt 0:05:33][%cal Oa5a6]} Bd7 {[%emt 0:12:42]} 17. a6 {[%emt 0:05:44]} Rac8 {[%emt 0:01:21]} 18. axb7 {[%emt 0:24:12]} Qxb7 {[%emt 0:00:20]} 19. b3 {[%emt 0:00:21]} cxd5 {[%emt 0:17:24]} 20. Nxd5 {[%emt 0:03:43]} Bg5 {[%emt 0:00:08]} 21. exf5 $2 {[%emt 0:10:03][%mdl 8192] [#]} (21. Ra5 $11) 21... Bc6 $2 {[%emt 0:05:38]} ({Black should play} 21... Bxf5 $19 22. Ne4 Bxe4 23. Qxe4 Rf4 24. Rxa7 (24. Nxf4 $2 {perishes.} Qxe4 25. Ra4 Qxc2 $19) 24... Qxa7 25. Nxf4 Bxf4) 22. c4 {[%emt 0:03:04]} Bxd5 {[%emt 0:00:38] The position is equal.} 23. cxd5 {[%emt 0:00:02]} Bxd2 {[%emt 0:00:08]} 24. Qxd2 {[%emt 0:00:06]} Rxf5 {[%emt 0:00:20]} 25. Qd3 {[%emt 0:07:10]} Rff8 {[%emt 0:00:32][%cal Bf5f8,Bf8c8,Bc8c3][%mdl 32]} 26. Rac1 {[%emt 0:03:19]} Qb6 {[%emt 0:03:10][%cal Ob6f2]} 27. Rxc8 {[%emt 0:02:25]} Rxc8 {[%emt 0:00:06]} 28. Qf5 {[%emt 0:00:05]} Rc3 {[%emt 0:05:50]} 29. Qf8+ {[%emt 0:01:00]} Kh7 {[%emt 0:00:04]} 30. Qf5+ {[%emt 0:00:08]} Kh8 {[%emt 0:00:04] Weighted Error Value: White=0.31/Black=0.33.  Loses game:     	White=1     	---        Missed win:     	---       	Black=1      Inaccurate:     	---       	Black=1      OK:         	White=8     	Black=9} 1/2-1/2

[Event "Swiss National League-A 2024"]
[Site "Luzern"]
[Date "2024.10.13"]
[Round "9.2"]
[White "Ragger, Markus"]
[Black "Pelletier, Yannick"]
[Result "1/2-1/2"]
[ECO "D27"]
[WhiteElo "2584"]
[BlackElo "2528"]
[Annotator "TA"]
[PlyCount "126"]
[EventDate "2023.10.03"]
[EventType "team-tourn"]
[EventCountry "SUI"]
[SourceTitle "playchess.com"]
[Source "ChessBase"]
[SourceQuality "1"]
[TimeControl "40/8400+30:20/3000+30:900+30"]

{[%evp 17,126,22,60,58,51,48,51,45,49,44,54,41,44,33,38,29,51,39,58,19,35,25,34,33,41,44,53,43,46,33,46,33,32,27,38,13,14,7,5,4,6,0,0,9,24,20,16,21,27,18,15,15,20,7,62,62,62,62,62,59,55,55,55,55,133,133,135,80,79,79,79,0,0,0,0,0,0,0,0,0,0,0,0,0,0,0,0,0,0,0,0,0,0,0,0,0,0,0,0,0,0,0,0,0,0,0,0,0,0,0,0]} 1. d4 {[%emt 0:40:03]} d5 {[%emt 0:40:33]} 2. c4 {[%emt 0:00:06]} dxc4 {[%emt 0:00:25]} 3. Nf3 {[%emt 0:00:05]} Nf6 {[%emt 0:00:33]} 4. e3 {[%emt 0:00:03]} e6 {[%emt 0:00:39]} 5. Bxc4 {[%emt 0:00:03]} c5 {[%emt 0:00:07]} 6. O-O {[%emt 0:00:05]} a6 {[%emt 0:00:24]} 7. b3 {[%emt 0:00:17]} Nc6 {[%emt 0:08:46]} 8. dxc5 {[%emt 0:04:13]} Bxc5 {[%emt 0:13:42]} 9. Qxd8+ {[%emt 0:07:03]} Kxd8 {[%emt 0:00:16]} 10. Bb2 {[%emt 0:00:37]} Ke7 {[%emt 0:14:39]} 11. Be2 {[%emt 0:09:51]} Bd7 {[%emt 0:05:31]} 12. Rc1 {[%emt 0:17:30] White is slightly better.} Bd6 {[%emt 0:01:16]} 13. Nbd2 {[%emt 0:00:06]} b5 {[%emt 0:12:22] Prevents Nc4} 14. a4 {[%emt 0:01:35]} Rab8 {[%emt 0:00:29]} 15. axb5 {[%emt 0:17:57]} axb5 {[%emt 0:00:13]} 16. Nb1 {[%emt 0:00:26]} Rb7 {[%emt 0:19:06]} 17. Nc3 {[%emt 0:11:34]} Rhb8 {[%emt 0:00:05]} 18. Ng5 {[%emt 0:00:10]} b4 {[%emt 0:07:43]} 19. Nce4 {[%emt 0:12:02] [#] Strongly threatening Nxd6.} Be5 {[%emt 0:00:06]} 20. Bxe5 {[%emt 0:04:55]} Nxe5 {[%emt 0:00:02]} 21. f4 {[%emt 0:00:20]} Nxe4 {[%emt 0:12:02]} 22. Nxe4 {[%emt 0:00:05]} Nc6 {[%emt 0:00:04]} 23. Nc5 {[%emt 0:09:35]} Ra7 {[%emt 0:00:04]} 24. Bf3 {[%emt 0:01:29]} Rxa1 {[%emt 0:03:42]} 25. Rxa1 {[%emt 0:00:01]} Rb6 {[%emt 0:00:41]} 26. Ra8 {[%emt 0:03:25]} Rb5 {[%emt 0:03:35]} 27. Nd3 {[%emt 0:04:09]} Na5 {[%emt 0:03:26]} 28. Ra7 {[%emt 0:03:47]} f6 {[%emt 0:00:12] Inhibits Ne5.} (28... Nxb3 $2 29. Bc6 Kd6 30. Bxb5 (30. Bxd7 Ra5 $18) 30... Bxb5 31. Nxb4 $18) 29. Bd1 {[%emt 0:01:01]} Rd5 {[%emt 0:02:36]} 30. Bc2 {[%emt 0:00:23]} Nxb3 {[%emt 0:00:58]} 31. Nxb4 {[%emt 0:00:07]} Rb5 {[%emt 0:00:20]} 32. Nd3 {[%emt 0:01:38] aiming for Bxb3.} Nc5 {[%emt 0:01:01]} 33. Nxc5 {[%emt 0:00:51]} Rxc5 {[%emt 0:00:02]} 34. Bxh7 $11 {[%emt 0:01:08][%mdl 4096] Endgame. KRB-KRB} f5 {[%emt 0:01:12]} 35. Bg6 {[%emt 0:00:24]} Rc1+ {[%emt 0:00:35]} (35... Rc3 $1 $11) 36. Kf2 $14 {[%emt 0:00:01] White is more active.} Rc2+ {[%emt 0:00:06]} 37. Kg3 $1 {[%emt 0:01:10]} Rc3 {[%emt 0:00:08]} 38. Kf3 {[%emt 0:00:13]} Kd6 {[%emt 0:01:08]} 39. Ra2 {[%emt 0:00:26]} Bc6+ {[%emt 0:00:21]} 40. Kf2 {[%emt 0:00:01]} Be4 {[%emt 0:00:24] [#]} ({Better is} 40... Ke7 $14) 41. g4 $1 $16 {[%emt 0:51:21][%mdl 512]} Rc1 {[%emt 0:10:35]} 42. Ra6+ {[%emt 0:00:00]} (42. h4 $142) 42... Ke7 {[%emt 0:02:16]} 43. Ra7+ {[%emt 0:00:00]} Kd6 {[%emt 0:01:20]} ({Don't play} 43... Kf6 44. Bh7 Rc2+ 45. Ke1) 44. Rxg7 {[%emt 0:00:00]} ({Much worse is} 44. gxf5 Rc2+ 45. Kf1 (45. Kg3 exf5 46. Kh3 Re2 $11) 45... exf5 $11) (44. h3 $16) 44... Rc2+ $11 {[%emt 0:01:51] The position is equal.} 45. Ke1 {[%emt 0:00:00]} Rc1+ {[%emt 0:01:58]} 46. Kd2 {[%emt 0:00:00]} Rc2+ {[%emt 0:00:04]} 47. Kd1 {[%emt 0:00:00]} Rxh2 {[%emt 0:00:26]} 48. g5 {[%emt 0:00:00]} Rh1+ {[%emt 0:02:49]} 49. Kd2 {[%emt 0:00:00]} Rh2+ {[%emt 0:00:39]} 50. Kc1 {[%emt 0:00:00]} Rh1+ {[%emt 0:00:33]} 51. Kd2 {[%emt 0:00:00]} Rh2+ {[%emt 0:00:08]} 52. Ke1 {[%emt 0:00:00]} Rh1+ {[%emt 0:00:19]} 53. Ke2 {[%emt 0:00:00]} Rh2+ {[%emt 0:00:09]} 54. Kf1 {[%emt 0:00:00]} Rh1+ {[%emt 0:00:59]} 55. Kf2 {[%emt 0:00:00]} Rh2+ {[%emt 0:00:14]} 56. Kg1 {[%emt 0:00:00]} Re2 {[%emt 0:19:05]} 57. Be8 {[%emt 0:00:38]} e5 {[%emt 0:00:56]} 58. Rg6+ {[%emt 0:07:54]} Ke7 {[%emt 0:00:13]} 59. Bb5 {[%emt 0:00:02]} Rxe3 {[%emt 0:00:14]} 60. fxe5 {[%emt 0:00:01]} Rg3+ {[%emt 0:02:31]} 61. Kf2 {[%emt 0:15:10]} f4 {[%emt 0:15:06]} 62. Rf6 {[%emt 0:00:07]} Rxg5 {[%emt 0:00:08]} 63. Rxf4 {[%emt 0:00:02]} Rxe5 {[%emt 0:00:08] Weighted Error Value: White=0.05 (flawless) /Black=0.04 (flawless) .  Mistake:       	White=2     	Black=2      Inaccurate:     	White=1     	---        OK:         	White=18    	Black=36     Best:        	White=3     	Black=2      Strong:       	White=1     	---        Brilliant:      	White=1     	---} 1/2-1/2

[Event "Swiss National League-A 2024"]
[Site "Luzern"]
[Date "2024.10.13"]
[Round "9.3"]
[White "Petkidis, Anthony"]
[Black "Georgiadis, Ioannis"]
[Result "1/2-1/2"]
[ECO "C54"]
[WhiteElo "2433"]
[BlackElo "2484"]
[Annotator "TA"]
[PlyCount "63"]
[EventDate "2023.10.03"]
[EventType "team-tourn"]
[EventCountry "SUI"]
[SourceTitle "playchess.com"]
[Source "ChessBase"]
[SourceQuality "1"]
[TimeControl "40/8400+30:20/3000+30:900+30"]

{[%evp 10,63,23,10,25,13,24,12,15,0,0,10,7,18,19,16,16,0,2,0,2,2,13,0,0,0,0,0,0,0,1,6,10,0,10,0,0,0,0,0,0,0,0,0,0,0,19,0,-3,0,0,-2,-5,-4,-2,-2]} 1. e4 {[%emt 0:40:06]} e5 {[%emt 0:40:19]} 2. Nf3 {[%emt 0:00:32]} Nc6 {[%emt 0:00:10]} 3. Bc4 {[%emt 0:00:52]} Nf6 {[%emt 0:01:43]} 4. d3 {[%emt 0:00:48]} Bc5 {[%emt 0:01:04]} 5. c3 {[%emt 0:00:57]} d6 {[%emt 0:00:25]} 6. O-O {[%emt 0:01:12]} a5 {[%emt 0:01:28]} 7. Re1 {[%emt 0:03:24]} Ba7 {[%emt 0:02:04]} 8. Na3 {[%emt 0:10:14][%cal Bb1a3,Ba3c2,Bc2e3,Be3c4][%mdl 32]} h6 {[%emt 0:02:09] The position is equal.} 9. Nc2 {[%emt 0:08:18]} O-O {[%emt 0:01:18]} 10. Be3 {[%emt 0:00:33]} Bxe3 {[%emt 0:00:40]} 11. Nxe3 {[%emt 0:00:07]} Re8 {[%emt 0:07:03]} 12. a4 {[%emt 0:08:57]} Be6 {[%emt 0:02:32]} 13. Qb3 {[%emt 0:04:26]} Bxc4 {[%emt 0:05:21]} 14. Nxc4 {[%emt 0:00:53]} Qd7 {[%emt 0:09:54]} 15. Qb5 {[%emt 0:04:23]} (15. Qxb7 $2 {loses.} Reb8 $19) 15... b6 {[%emt 0:04:14]} 16. h3 {[%emt 0:08:44]} Ne7 {[%emt 0:18:19]} 17. Qxd7 {[%emt 0:02:58]} Nxd7 {[%emt 0:01:31]} 18. d4 {[%emt 0:05:19]} exd4 {[%emt 0:06:44]} 19. Nxd4 {[%emt 0:01:10]} d5 {[%emt 0:00:30]} 20. exd5 {[%emt 0:01:47]} Nxd5 {[%emt 0:00:39]} 21. Nb5 {[%emt 0:09:17]} Kf8 {[%emt 0:07:06]} 22. Red1 {[%emt 0:09:11]} N7f6 {[%emt 0:00:47]} 23. f3 {[%emt 0:05:41]} Re7 {[%emt 0:04:20]} 24. Rd2 {[%emt 0:01:48]} Rae8 {[%emt 0:01:36][%cal Ba8e8,Be8e1,Be1a1,Ba1a4][%mdl 32]} 25. g3 {[%emt 0:03:43]} Re1+ {[%emt 0:02:23]} 26. Rxe1 {[%emt 0:00:10]} Rxe1+ {[%emt 0:00:03]} 27. Kf2 {[%emt 0:00:28]} Ra1 {[%emt 0:01:55]} 28. Ne3 {[%emt 0:03:06]} Nxe3 {[%emt 0:09:25]} 29. Kxe3 {[%emt 0:00:10]} Ne8 {[%emt 0:00:06]} 30. Rd7 {[%emt 0:03:15]} Rxa4 {[%emt 0:01:38]} 31. Nxc7 {[%emt 0:03:01]} Nxc7 {[%emt 0:00:28]} 32. Rxc7 {[%emt 0:00:31] A rather calm draw.   Weighted Error Value: White=0.06 (flawless) /Black=0.02 (flawless) .  OK:         	White=7     	Black=14     Best:        	White=1     	---} 1/2-1/2

[Event "Swiss National League-A 2024"]
[Site "Luzern"]
[Date "2024.10.13"]
[Round "9.4"]
[White "Demuth, Adrien"]
[Black "Brunner, Lucas"]
[Result "1-0"]
[ECO "E52"]
[WhiteElo "2514"]
[BlackElo "2413"]
[Annotator "TA"]
[PlyCount "53"]
[EventDate "2023.10.03"]
[EventType "team-tourn"]
[EventCountry "SUI"]
[SourceTitle "playchess.com"]
[Source "ChessBase"]
[SourceQuality "1"]
[TimeControl "40/8400+30:20/3000+30:900+30"]

{[%evp 18,53,15,0,5,0,25,26,28,25,24,22,40,44,68,46,68,70,92,92,98,100,90,83,120,118,122,124,118,118,129,119,252,258,283,283,343,344]} 1. d4 {[%emt 0:40:04]} Nf6 {[%emt 0:40:51]} 2. c4 {[%emt 0:00:20]} e6 {[%emt 0:00:29]} 3. Nc3 {[%emt 0:00:31]} Bb4 {[%emt 0:00:12]} 4. e3 {[%emt 0:00:37]} b6 {[%emt 0:04:46]} 5. Bd3 {[%emt 0:01:26]} Bb7 {[%emt 0:00:12]} 6. Nf3 {[%emt 0:00:07]} O-O {[%emt 0:05:15]} 7. O-O {[%emt 0:02:17]} d5 {[%emt 0:00:19]} 8. cxd5 {[%emt 0:13:34]} exd5 {[%emt 0:00:11]} 9. a3 {[%emt 0:03:10]} Bd6 {[%emt 0:11:34]} 10. b4 {[%emt 0:00:37]} a6 {[%emt 0:15:03]} 11. Qb3 {[%emt 0:00:57]} Ne4 {[%emt 0:04:48]} 12. a4 {[%emt 0:07:07]} (12. Nxd5 $2 Bxd5 13. Qc2 f5 $19) 12... Nxc3 {[%emt 0:01:45] White has an edge.} 13. Qxc3 {[%emt 0:00:19]} Qe7 {[%emt 0:07:20]} 14. Ba3 {[%emt 0:23:31]} Nc6 {[%emt 0:08:49]} 15. b5 {[%emt 0:09:40]} axb5 {[%emt 0:01:37] [#] Threatens to win with ...b4.} 16. Bxd6 {[%emt 0:00:44]} (16. axb5 Bxa3 (16... Rxa3 17. Rxa3 Bxa3 18. bxc6 $17) (16... Nxd4 $2 17. Nxd4 Bxa3 18. Nf5 $18) 17. bxc6 Bc8 $11) 16... Qxd6 {[%emt 0:09:19]} 17. axb5 {[%emt 0:01:04]} Na5 {[%emt 0:02:28]} 18. Rfc1 {[%emt 0:03:22][%cal Oc3c2]} c6 {[%emt 0:10:13]} 19. bxc6 {[%emt 0:00:38]} Bxc6 {[%emt 0:01:46]} 20. Ne5 {[%emt 0:05:38]} ({Don't play} 20. Rxa5 $6 bxa5 21. Qxc6 Qxc6 22. Rxc6 Rfc8 23. Rxc8+ Rxc8 $11) 20... Bb7 {[%emt 0:05:18]} 21. Qc7 {[%emt 0:05:39]} Qxc7 {[%emt 0:13:01]} 22. Rxc7 {[%emt 0:00:19]} Rac8 {[%emt 0:02:47]} 23. Re7 {[%emt 0:14:34] White is much more active.} Rc3 {[%emt 0:02:43]} 24. Bf1 {[%emt 0:02:21]} f6 {[%emt 0:00:29]} (24... Bc8 $16 25. Ra7 g6) 25. Nd7 $1 $18 {[%emt 0:01:10][%csl LRb6,LRf8] aiming for Rxa5. White has a decisive advantage.} Rd8 {[%emt 0:00:40]} 26. Nxb6 {[%emt 0:00:20]} Kf8 {[%emt 0:00:32] [#]} 27. Rd7 $1 {[%emt 0:01:11] Black did not feel at home in the position after the opening.   Weighted Error Value: White=0.01 (flawless) /Black=0.24 (precise) .  Mistake:       	---       	Black=1      Inaccurate:     	---       	Black=1      OK:         	White=11    	Black=4      Best:        	White=1     	---        Strong:       	White=1     	---} 1-0

[Event "Swiss National League-A 2024"]
[Site "Luzern"]
[Date "2024.10.13"]
[Round "9.5"]
[White "Fecker, Noah"]
[Black "Renet, Olivier"]
[Result "1/2-1/2"]
[ECO "C30"]
[WhiteElo "2338"]
[BlackElo "2417"]
[Annotator "TA"]
[PlyCount "60"]
[EventDate "2023.10.03"]
[EventType "team-tourn"]
[EventCountry "SUI"]
[SourceTitle "playchess.com"]
[Source "ChessBase"]
[SourceQuality "1"]
[TimeControl "40/8400+30:20/3000+30:900+30"]

{[%evp 14,60,8,7,0,-3,0,-31,-34,-24,-24,-23,-17,-27,0,-12,-10,-9,-9,-9,0,-11,0,0,0,0,2,0,17,0,0,0,0,-9,0,0,0,-18,-10,-28,-42,-41,0,-37,-31,-38,-43,-48,-21]} 1. e4 {[%emt 0:40:04]} e5 {[%emt 0:40:14]} 2. Nc3 {[%emt 0:00:35]} Bc5 {[%emt 0:01:18]} 3. Bc4 {[%emt 0:04:13]} Nf6 {[%emt 0:01:09]} 4. d3 {[%emt 0:01:16]} d6 {[%emt 0:03:58]} 5. f4 {[%emt 0:02:42]} Nc6 {[%emt 0:01:52]} 6. Nf3 {[%emt 0:04:02]} a6 {[%emt 0:01:36]} 7. fxe5 {[%emt 0:19:58]} dxe5 {[%emt 0:08:44]} 8. Bg5 {[%emt 0:04:43]} h6 {[%emt 0:04:07]} 9. Bh4 {[%emt 0:03:59]} Qd6 {[%emt 0:14:13]} 10. Nd5 {[%emt 0:11:07]} Nxd5 {[%emt 0:04:00]} 11. Bxd5 {[%emt 0:00:52]} Ne7 {[%emt 0:06:57]} 12. Bb3 {[%emt 0:03:27]} Be6 {[%emt 0:05:25]} 13. Qd2 {[%emt 0:09:48]} O-O {[%emt 0:08:44]} 14. Bf2 {[%emt 0:04:34]} Bxb3 {[%emt 0:03:10]} 15. axb3 {[%emt 0:01:36]} Bxf2+ {[%emt 0:00:09]} 16. Qxf2 {[%emt 0:00:26]} f5 {[%emt 0:00:09]} 17. O-O {[%emt 0:05:54]} fxe4 {[%emt 0:02:37]} 18. dxe4 {[%emt 0:00:02]} Nc6 {[%emt 0:03:18]} 19. c3 {[%emt 0:03:15] Prevents Nd4.} Qd3 {[%emt 0:06:16]} 20. Rfe1 {[%emt 0:03:31]} Rad8 {[%emt 0:02:41]} 21. Qe2 {[%emt 0:07:48]} Qxe2 {[%emt 0:12:35]} 22. Rxe2 {[%emt 0:00:02]} a5 {[%emt 0:03:15]} 23. Ree1 {[%emt 0:04:43]} Rf4 {[%emt 0:02:48]} 24. Rac1 {[%emt 0:03:20]} Kf7 {[%emt 0:04:42]} 25. Rc2 {[%emt 0:01:21]} Ke6 {[%emt 0:00:36]} 26. Rd2 {[%emt 0:01:31]} (26. Kf2 {with more complications.} g5 27. Ke3 g4 28. Nh4) 26... Rxd2 {[%emt 0:03:05]} 27. Nxd2 {[%emt 0:00:01]} b6 {[%emt 0:00:14]} 28. Rf1 {[%emt 0:02:06]} Nb8 {[%emt 0:01:55] Black is slightly better.} 29. g3 {[%emt 0:01:29]} Rxf1+ {[%emt 0:00:08]} 30. Kxf1 {[%emt 0:00:01]} Nd7 {[%emt 0:00:17] Weighted Error Value: White=0.08 (flawless) /Black=0.05 (flawless) .  Inaccurate:     	White=2     	Black=3      OK:         	White=4     	Black=10     Best:        	---       	Black=1} 1/2-1/2